fUSD/lending_fUSD_20241202
["ID","MTS","AMOUNT","RATE_DAILY","PERIOD"]
[343990387,1733169930680,-500.0,0.00027465,120]
[343990388,1733169930725,-741.16,0.00027465,120]
[343990389,1733169930771,-500.0,0.00027465,120]
[343990390,1733169930815,-895.0,0.00027465,120]
[343990391,1733169930859,-500.0,0.00027465,120]
[343990392,1733169930904,-500.0,0.00027465,120]
[343990393,1733169930949,-1132.26,0.00027465,120]
[343990394,1733169930995,-500.0,0.00027465,120]
[343990395,1733169931040,-1511.73,0.00027465,120]
[343990396,1733169931083,-500.0,0.00027465,120]
[343990397,1733169931125,-500.0,0.00027465,120]
[343990398,1733169931169,-742.76,0.00027465,120]
[343990399,1733169931213,-1844.92,0.00027465,120]
[343990400,1733169931258,-500.0,0.00027465,120]
[343990401,1733169931302,-674.34,0.00027465,120]
[343990402,1733169931348,-500.0,0.00027465,120]
[343990403,1733169931393,-656.68,0.00027465,120]
[343990404,1733169931438,-500.0,0.00027465,120]
[343990405,1733169931483,-1030.51,0.00027465,120]
[343990406,1733169931532,-500.0,0.00027465,120]
[343990407,1733169931577,-843.35,0.00027465,120]
[343990408,1733169931622,-500.0,0.00027465,120]
[343990409,1733169931668,-500.0,0.00027465,120]
[343990410,1733169931712,-673.42,0.00027465,120]
[343990411,1733169931756,-619.73,0.00027465,120]
[343990412,1733169931798,-500.0,0.00027465,120]
[343990413,1733169931839,-1749.32,0.00027465,120]
[343990414,1733169931880,-500.0,0.00027465,120]
[343990415,1733169931920,-1859.06,0.00027465,120]
[343990416,1733169931963,-500.0,0.00027465,120]
[343990417,1733169932004,-500.0,0.00027465,120]
[343990418,1733169932047,-500.0,0.00027465,120]
[343990419,1733169932089,-2460.03,0.00027465,120]
[343990420,1733169932130,-735.25,0.00027465,120]
[343990421,1733169932173,-1203.83,0.00027465,120]
[343990422,1733169932214,-755.11,0.00027465,120]
[343990423,1733169932256,-605.28,0.00027465,120]
[343990424,1733169932298,-1404.0,0.00027465,120]
[343990425,1733169932340,-942.74,0.00027465,120]
[343990426,1733169932382,-578.22,0.00027465,120]
[343990427,1733169932424,-1539.81,0.00027465,120]
[343990428,1733169932470,-714.85,0.00027465,120]
[343990429,1733169932517,-564.14,0.00027465,120]
[343990430,1733169932563,-1157.3,0.00027465,90]
[343990431,1733169932606,-500.0,0.00027465,120]
[343990432,1733169932649,-2248.53,0.00027465,120]
[343990433,1733169932695,-500.0,0.00027465,120]
[343990434,1733169932737,-511.8,0.00027465,120]
[343990435,1733169932779,-500.0,0.00027465,120]
[343990436,1733169932820,-527.44344085,0.00027465,120]
[343990437,1733169932862,-990.08,0.00027465,120]
[343990438,1733169932902,-500.0,0.00027465,120]
[343990439,1733169932943,-1429.88,0.00027465,120]
[343990440,1733169932984,-500.0,0.00027465,120]
[343990441,1733169933034,-500.0,0.00027465,120]
[343990442,1733169933084,-500.0,0.00027465,120]
[343990443,1733169933131,-500.0,0.00027465,120]
[343990444,1733169933175,-759.91,0.00027465,120]
[343990445,1733169933222,-1022.75,0.00027465,120]
[343990446,1733169933266,-500.0,0.00027465,120]
[343990447,1733169933312,-500.0,0.00027465,120]
[343990448,1733169933362,-507.65,0.00027465,120]
[343990449,1733169933412,-794.35,0.00027465,120]
[343990450,1733169933460,-1741.18,0.00027465,120]
[343990451,1733169933508,-500.0,0.00027465,120]
[343990452,1733169933556,-951.11,0.00027465,120]
[343990453,1733169933603,-500.71,0.00027465,120]
[343990454,1733169933650,-500.0,0.00027465,120]
[343990455,1733169933697,-500.0,0.00027465,120]
[343990456,1733169933748,-1896.23,0.00027465,120]
[343990457,1733169933798,-500.0,0.00027465,120]
[343990458,1733169933842,-500.0,0.00027465,120]
[343990459,1733169933887,-500.0,0.00027465,120]
[343990460,1733169933936,-895.29,0.00027465,120]
[343990461,1733169933986,-715.32,0.00027465,120]
[343990462,1733169934035,-500.0,0.00027465,120]
[343990463,1733169934083,-500.0,0.00027465,120]
[343990464,1733169934129,-500.0,0.00027465,120]
[343990465,1733169934173,-1200.26,0.00027465,120]
[343990466,1733169934217,-500.0,0.00027465,120]
[343990467,1733169934259,-500.0,0.00027465,120]
[343990468,1733169934304,-1362.16,0.00027465,120]
[343990469,1733169934360,-500.0,0.00027465,120]
[343990470,1733169934411,-500.0,0.00027465,120]
[343990471,1733169934457,-618.4,0.00027465,120]
[343990472,1733169934506,-748.23,0.00027465,120]
[343990473,1733169934557,-500.0,0.00027465,120]
[343990474,1733169934605,-500.0,0.00027465,120]
[343990475,1733169934657,-793.36,0.00027465,120]
[343990476,1733169934703,-1512.73,0.00027465,120]
[343990477,1733169934749,-908.58,0.00027465,120]
[343990478,1733169934796,-3180.24,0.00027465,120]
[343990479,1733169935091,-500.0,0.00027465,120]
[343990480,1733169935136,-1267.07,0.00027465,120]
[343990481,1733169935180,-641.83,0.00027465,120]
[343990482,1733169935223,-2544.61,0.00027465,120]
[343990483,1733169935264,-500.0,0.00027465,120]
[343990484,1733169935308,-500.0,0.00027465,120]
[343990485,1733169935352,-500.0,0.00027465,120]
[343990486,1733169935396,-500.0,0.00027465,120]
[343990487,1733169935443,-1187.33,0.00027465,120]
[343990488,1733169935486,-500.0,0.00027465,120]
[343990489,1733169935533,-500.0,0.00027465,120]
[343990490,1733169935576,-3437.65,0.00027465,120]
[343990491,1733169935625,-835.54,0.00027465,120]
[343990492,1733169935670,-500.0,0.00027465,120]
[343990493,1733169935715,-700.0,0.00027465,120]
[343990494,1733169935758,-500.0,0.00027465,120]
[343990495,1733169935803,-1643.01,0.00027465,120]
[343990496,1733169935848,-500.0,0.00027465,120]
[343990497,1733169935893,-538.93800863,0.00027465,120]
[343990498,1733169935937,-500.0,0.00027465,120]
[343990499,1733169935981,-948.79,0.00027465,120]
[343990500,1733169936024,-581.49,0.00027465,120]
[343990501,1733169936068,-3325.5,0.00027465,120]
[343990502,1733169936111,-503.19,0.00027465,120]
[343990503,1733169936156,-1663.95,0.00027465,120]
[343990504,1733169936198,-1118.58,0.00027465,120]
[343990505,1733169936241,-745.04,0.00027465,120]
[343990506,1733169936287,-500.0,0.00027465,120]
[343990507,1733169936329,-500.0,0.00027465,120]
[343990508,1733169936372,-1284.07,0.00027465,120]
[343990509,1733169936414,-890.64,0.00027465,120]
[343990510,1733169936456,-917.02,0.00027465,120]
[343990511,1733169936500,-500.0,0.00027465,120]
[343990512,1733169936544,-580.95,0.00027465,120]
[343990513,1733169936587,-6207.23,0.00027465,120]
[343990514,1733169936632,-500.0,0.00027465,120]
[343990515,1733169936676,-1114.51,0.00027465,60]
[343990516,1733169936721,-2448.92,0.00027465,120]
[343990517,1733169936765,-500.0,0.00027465,120]
[343990518,1733169936808,-1950.33,0.00027465,120]
[343990519,1733169936852,-3054.87,0.00027465,120]
[343990520,1733169936898,-870.88,0.00027465,120]
[343990521,1733169936943,-2228.68,0.00027465,120]
[343990522,1733169936987,-923.08,0.00027465,120]
[343990523,1733169937032,-500.0,0.00027465,120]
[343990524,1733169937079,-544.54,0.00027465,120]
[343990525,1733169937124,-500.0,0.00027465,120]
[343990526,1733169937168,-500.0,0.00027465,120]
[343990527,1733169937210,-1092.9,0.00027465,120]
[343990528,1733169937257,-571.61,0.00027465,120]
[343990529,1733169937303,-500.0,0.00027465,120]
[343990530,1733169937348,-811.66,0.00027465,120]
[343990531,1733169937399,-2196.28,0.00027465,120]
[343990532,1733169937446,-500.0,0.00027465,120]
[343990533,1733169937493,-500.0,0.00027465,120]
[343990534,1733169937541,-684.17,0.00027465,120]
[343990535,1733169937587,-2668.13,0.00027465,120]
[343990536,1733169937633,-663.27,0.00027465,120]
[343990537,1733169937679,-500.0,0.00027465,120]
[343990538,1733169937724,-535.28,0.00027465,120]
[343990539,1733169937771,-544.14028461,0.00027465,120]
[343990540,1733169937819,-895.09,0.00027465,120]
[343990541,1733169937877,-500.0,0.00027465,120]
[343990542,1733169937929,-1975.86,0.00027465,120]
[343990543,1733169937977,-500.0,0.00027465,120]
[343990544,1733169938024,-500.0,0.00027465,120]
[343990545,1733169938070,-978.51,0.00027465,120]
[343990546,1733169938120,-1404.4,0.00027465,120]
[343990547,1733169938167,-3927.33,0.00027465,120]
[343990548,1733169938211,-4766.8,0.00027465,120]
[343990549,1733169938261,-500.0,0.00027465,120]
[343990550,1733169938309,-1607.08,0.00027465,120]
[343990551,1733169938356,-500.0,0.00027465,120]
[343990552,1733169938402,-841.46,0.00027465,120]
[343990553,1733169938450,-2073.17,0.00027465,120]
[343990554,1733169938501,-2877.76,0.00027465,120]
[343990555,1733169938549,-1140.61,0.00027465,120]
[343990556,1733169938598,-682.14,0.00027465,120]
[343990557,1733169938648,-729.35,0.00027465,120]
[343990558,1733169938710,-500.0,0.00027465,120]
[343990559,1733169938761,-522.94,0.00027465,120]
[343990560,1733169938808,-500.0,0.00027465,120]
[343990561,1733169938855,-823.11,0.00027465,120]
[343990562,1733169938901,-2298.11,0.00027465,120]
[343990563,1733169938947,-3498.94,0.00027465,120]
[343990564,1733169938989,-1433.32,0.00027465,120]
[343990565,1733169939033,-500.0,0.00027465,120]
[343990566,1733169939076,-500.0,0.00027465,120]
[343990567,1733169939119,-1432.32,0.00027465,120]
[343990568,1733169939161,-1134.59,0.00027465,120]
[343990569,1733169939202,-718.76,0.00027465,120]
[343990570,1733169939241,-1883.27,0.00027465,120]
[343990571,1733169939286,-500.0,0.00027465,120]
[343990572,1733169939328,-2924.44,0.00027465,120]
[343990573,1733169939370,-2057.6,0.00027465,120]
[343990574,1733169939649,-500.0,0.00027465,120]
[343990575,1733169939699,-500.0,0.00027465,120]
[343990576,1733169939744,-7028.86,0.00027465,120]
[343990577,1733169939801,-1803.13,0.00027465,120]
[343990578,1733169939850,-500.0,0.00027465,120]
[343990579,1733169939898,-3102.05,0.00027465,120]
[343990580,1733169939946,-500.0,0.00027465,120]
[343990581,1733169939991,-1541.69,0.00027465,120]
[343990582,1733169940038,-903.21,0.00027465,120]
[343990583,1733169940084,-500.0,0.00027465,120]
[343990584,1733169940128,-561.44526529,0.00027465,120]
[343990585,1733169940172,-500.0,0.00027465,120]
[343990586,1733169940217,-1049.47,0.00027465,120]
[343990587,1733169940263,-806.28,0.00027465,120]
[343990588,1733169940308,-1062.78,0.00027465,120]
[343990589,1733169940353,-500.0,0.00027465,120]
[343990590,1733169940400,-500.0,0.00027465,120]
[343990591,1733169940446,-529.81,0.00027465,120]
[343990592,1733169940494,-5322.29,0.00027465,120]
[343990593,1733169940544,-1613.46,0.00027465,120]
[343990594,1733169940591,-663.6,0.00027465,120]
[343990595,1733169940637,-880.7,0.00027465,120]
[343990596,1733169940683,-500.0,0.00027465,120]
[343990597,1733169940728,-500.0,0.00027465,120]
[343990598,1733169940775,-683.6,0.00027465,120]
[343990599,1733169940821,-2061.14,0.00027465,30]
[343990600,1733169940865,-500.0,0.00027465,120]
[343990601,1733169940914,-1353.46,0.00027465,120]
[343990602,1733169940963,-584.0,0.00027465,120]
[343990603,1733169941010,-721.18,0.00027465,120]
[343990604,1733169941057,-500.0,0.00027465,120]
[343990605,1733169941103,-500.0,0.00027465,120]
[343990606,1733169941147,-500.0,0.00027465,120]
[343990607,1733169941192,-1668.31,0.00027465,120]
[343990608,1733169941235,-500.0,0.00027465,120]
[343990609,1733169941281,-500.0,0.00027465,120]
[343990610,1733169941326,-500.0,0.00027465,120]
[343990611,1733169941372,-500.0,0.00027465,120]
[343990612,1733169941416,-559.05,0.00027465,120]
[343990613,1733169941462,-907.5,0.00027465,120]
[343990614,1733169941509,-658.13,0.00027465,120]
[343990615,1733169941554,-1134.22,0.00027465,120]
[343990616,1733169941599,-500.0,0.00027465,120]
[343990617,1733169941643,-518.27,0.00027465,120]
[343990618,1733169941692,-2812.6,0.00027465,120]
[343990619,1733169941740,-500.0,0.00027465,120]
[343990620,1733169941786,-1551.24,0.00027465,120]
[343990621,1733169941830,-622.04,0.00027465,120]
[343990622,1733169941876,-500.0,0.00027465,120]
[343990623,1733169941921,-1134.58,0.00027465,120]
[343990624,1733169941964,-500.0,0.00027465,120]
[343990625,1733169942012,-723.17,0.00027465,120]
[343990626,1733169942057,-500.0,0.00027465,120]
[343990627,1733169942106,-1392.8,0.00027465,120]
[343990628,1733169942152,-703.37,0.00027465,120]
[343990629,1733169942197,-500.0,0.00027465,120]
[343990630,1733169942241,-500.0,0.00027465,120]
[343990631,1733169942292,-1785.16,0.00027465,120]
[343990632,1733169942338,-672.83,0.00027465,120]
[343990633,1733169942380,-500.0,0.00027465,120]
[343990634,1733169942425,-2072.12,0.00027465,120]
[343990635,1733169942470,-2151.79,0.00027465,120]
[343990636,1733169942515,-671.1,0.00027465,120]
[343990637,1733169942559,-1217.44,0.00027465,60]
[343990638,1733169942604,-2095.96,0.00027465,120]
[343990639,1733169942656,-500.0,0.00027465,120]
[343990640,1733169942703,-2399.96,0.00027465,120]
[343990641,1733169942748,-500.0,0.00027465,120]
[343990642,1733169942796,-1205.02,0.00027465,120]
[343990643,1733169942840,-731.09,0.00027465,120]
[343990644,1733169942885,-517.92,0.00027465,120]
[343990645,1733169942930,-957.59,0.00027465,120]
[343990646,1733169942974,-500.0,0.00027465,120]
[343990647,1733169943017,-500.0,0.00027465,120]
[343990648,1733169943063,-964.02,0.00027465,120]
[343990649,1733169943107,-1155.0,0.00027465,120]
[343990650,1733169943152,-500.0,0.00027465,120]
[343990651,1733169943198,-1599.85,0.00027465,120]
[343990652,1733169943244,-3145.91,0.00027465,120]
[343990653,1733169943291,-500.0,0.00027465,120]
[343990654,1733169943335,-500.0,0.00027465,120]
[343990655,1733169943379,-500.0,0.00027465,120]
[343990656,1733169943422,-3095.03,0.00027465,120]
[343990657,1733169943469,-966.75,0.00027465,120]
[343990658,1733169943515,-1566.82,0.00027465,120]
[343990659,1733169943562,-3532.86,0.00027465,120]
[343990660,1733169943615,-2087.33,0.00027465,120]
[343990661,1733169943664,-4394.15,0.00027465,120]
[343990662,1733169943711,-1858.53,0.00027465,120]
[343990663,1733169943762,-1050.27,0.00027465,120]
[343990664,1733169943806,-1419.7,0.00027465,120]
[343990665,1733169943851,-704.36,0.00027465,120]
[343990666,1733169943895,-251.85553572,0.00027465,120]
[343990667,1733169943942,-1155.5,0.00027465,120]
[343990668,1733169944222,-3307.46,0.00027465,120]
[343990669,1733169944268,-500.0,0.00027465,120]
[343990670,1733169944314,-619.4,0.00027465,120]
[343990671,1733169944360,-2954.23,0.00027465,120]
[343990672,1733169944407,-500.0,0.00027465,120]
[343990673,1733169944453,-1622.42,0.00027465,120]
[343990674,1733169944499,-2485.86,0.00027465,120]
[343990675,1733169944548,-1433.94,0.00027465,120]
[343990676,1733169944594,-1486.96,0.00027465,120]
[343990677,1733169944641,-500.0,0.00027465,120]
[343990678,1733169944688,-5702.56,0.00027465,120]
[343990679,1733169944734,-553.01,0.00027465,120]
[343990680,1733169944781,-617.67,0.00027465,120]
[343990681,1733169944825,-4667.69,0.00027465,120]
[343990682,1733169944871,-909.9,0.00027465,120]
[343990683,1733169944916,-2769.56,0.00027465,120]
[343990684,1733169944960,-1527.45,0.00027465,120]
[343990685,1733169945009,-500.0,0.00027465,120]
[343990686,1733169945055,-2607.43,0.00027465,120]
[343990687,1733169945101,-1429.2,0.00027465,120]
[343990688,1733169945150,-500.0,0.00027465,120]
[343990689,1733169945198,-500.0,0.00027465,120]
[343990690,1733169945246,-500.0,0.00027465,120]
[343990691,1733169945295,-1181.82,0.00027465,120]
[343990692,1733169945342,-1289.36,0.00027465,120]
[343990693,1733169945389,-2609.47,0.00027465,120]
[343990694,1733169945437,-847.91,0.00027465,120]
[343990695,1733169945487,-500.0,0.00027465,120]
[343990696,1733169945540,-1577.07,0.00027465,120]
[343990697,1733169945590,-500.0,0.00027465,120]
[343990698,1733169945636,-1229.5,0.00027465,120]
[343990699,1733169945684,-1146.75,0.00027465,120]
[343990700,1733169945731,-2309.42,0.00027465,120]
[343990701,1733169945777,-500.0,0.00027465,120]
[343990702,1733169945825,-870.78,0.00027465,120]
[343990703,1733169945872,-6116.17,0.00027465,120]
[343990704,1733169945917,-5287.35,0.00027465,120]
[343990705,1733169945965,-793.22,0.00027465,120]
[343990706,1733169946014,-500.0,0.00027465,120]
[343990707,1733169946061,-500.0,0.00027465,120]
[343990708,1733169946108,-1023.67,0.00027465,120]
[343990709,1733169946153,-2550.03,0.00027465,120]
[343990710,1733169946198,-1153.56,0.00027465,120]
[343990711,1733169946260,-235.11307169,0.00027465,120]
[343990712,1733169946310,-2762.05,0.00027465,120]
[343990713,1733169946358,-500.0,0.00027465,120]
[343990714,1733169946408,-514.18,0.00027465,120]
[343990715,1733169946457,-500.0,0.00027465,120]
[343990716,1733169946509,-3535.47,0.00027465,120]
[343990717,1733169946559,-500.0,0.00027465,120]
[343990718,1733169946613,-1417.54,0.00027465,120]
[343990719,1733169946667,-549.1,0.00027465,120]
[343990720,1733169946716,-4776.42,0.00027465,120]
[343990721,1733169946768,-795.36,0.00027465,120]
[343990722,1733169946829,-890.83,0.00027465,120]
[343990723,1733169946877,-500.0,0.00027465,120]
[343990724,1733169946924,-2411.07,0.00027465,120]
[343990725,1733169946973,-991.41,0.00027465,120]
[343990726,1733169947021,-5621.83,0.00027465,120]
[343990727,1733169947070,-1874.45,0.00027465,120]
[343990728,1733169947116,-1305.92,0.00027465,120]
[343990729,1733169947162,-931.33,0.00027465,120]
[343990730,1733169947212,-1065.56,0.00027465,120]
[343990731,1733169947261,-500.0,0.00027465,120]
[343990732,1733169947308,-1775.35,0.00027465,120]
[343990733,1733169947356,-679.68,0.00027465,120]
[343990734,1733169947401,-500.0,0.00027465,120]
[343990735,1733169947450,-500.0,0.00027465,120]
[343990736,1733169947500,-500.0,0.00027465,120]
[343990737,1733169947550,-526.93,0.00027465,120]
[343990738,1733169947598,-2317.22,0.00027465,120]
[343990739,1733169947644,-500.0,0.00027465,120]
[343990740,1733169947700,-500.0,0.00027465,120]
[343990741,1733169947746,-500.0,0.00027465,120]
[343990742,1733169947794,-800.64,0.00027465,120]
[343990743,1733169947842,-1036.58,0.00027465,120]
[343990744,1733169947888,-633.81,0.00027465,120]
[343990745,1733169947933,-2205.66,0.00027465,120]
[343990746,1733169947978,-1047.46,0.00027465,120]
[343990747,1733169948023,-5481.99,0.00027465,30]
[343990748,1733169948071,-758.69,0.00027465,120]
[343990749,1733169948117,-1427.38,0.00027465,120]
[343990750,1733169948166,-500.0,0.00027465,120]
[343990751,1733169948220,-514.92,0.00027465,120]
[343990752,1733169948272,-500.0,0.00027465,120]
[343990753,1733169948322,-641.63,0.00027465,120]
[343990754,1733169948372,-500.0,0.00027465,120]
[343990755,1733169948422,-1447.48,0.00027465,120]
[343990756,1733169948477,-4272.24,0.00027465,120]
[343990757,1733169948530,-560.78,0.00027465,120]
[343990758,1733169948580,-736.23,0.00027465,120]
[343990759,1733169948628,-667.49,0.00027465,120]
[343990760,1733169948678,-844.39,0.00027465,120]
[343990761,1733169948726,-2263.66,0.00027465,120]
[343990762,1733169949187,-3364.95,0.00027465,120]
[343990763,1733169949233,-455.12094128,0.00027465,120]
[343990764,1733169949279,-2452.77,0.00027465,120]
[343990765,1733169949325,-563.29,0.00027465,120]
[343990766,1733169949370,-500.0,0.00027465,120]
[343990767,1733169949417,-1715.81,0.00027465,120]
[343990768,1733169949464,-500.0,0.00027465,120]
[343990769,1733169949516,-539.85,0.00027465,120]
[343990770,1733169949564,-1059.98,0.00027465,120]
[343990771,1733169949612,-2422.49,0.00027465,120]
[343990772,1733169949660,-500.0,0.00027465,120]
[343990773,1733169949709,-1790.06,0.00027465,120]
[343990774,1733169949759,-500.0,0.00027465,120]
[343990775,1733169949808,-1103.76,0.00027465,120]
[343990776,1733169949856,-1000.34,0.00027465,120]
[343990777,1733169949902,-1289.89,0.00027465,120]
[343990778,1733169949947,-500.0,0.00027465,120]
[343990779,1733169949991,-2192.16,0.00027465,120]
[343990780,1733169950040,-1228.74,0.00027465,120]
[343990781,1733169950086,-957.9,0.00027465,120]
[343990782,1733169950129,-780.49,0.00027465,120]
[343990783,1733169950172,-2513.91,0.00027465,120]
[343990784,1733169950215,-500.0,0.00027465,120]
[343990785,1733169950262,-1177.37,0.00027465,120]
[343990786,1733169950308,-1711.39,0.00027465,120]
[343990787,1733169950354,-13756.05,0.00027465,120]
[343990788,1733169950398,-1223.82,0.00027465,120]
[343990789,1733169950446,-500.0,0.00027465,120]
[343990790,1733169950492,-19783.26,0.00027465,120]
[343990791,1733169950537,-814.1,0.00027465,120]
[343990792,1733169950583,-1144.32,0.00027465,120]
[343990793,1733169950630,-500.0,0.00027465,120]
[343990794,1733169950675,-566.12,0.00027465,120]
[343990795,1733169950724,-500.0,0.00027465,120]
[343990796,1733169950767,-3463.96,0.00027465,120]
[343990797,1733169950816,-2471.59,0.00027465,120]
[343990798,1733169950863,-4111.41,0.00027465,120]
[343990799,1733169950915,-593.51,0.00027465,120]
[343990800,1733169950963,-2015.47,0.00027465,120]
[343990801,1733169951019,-2902.34,0.00027465,120]
[343990802,1733169951071,-21330.27,0.00027465,120]
[343990803,1733169951115,-898.43,0.00027465,120]
[343990804,1733169951160,-3255.42,0.00027465,120]
[343990805,1733169951205,-500.56,0.00027465,120]
[343990806,1733169951250,-500.0,0.00027465,120]
[343990807,1733169951299,-938.21,0.00027465,120]
[343990808,1733169951349,-500.0,0.00027465,120]
[343990809,1733169951395,-599.12,0.00027465,120]
[343990810,1733169951440,-500.0,0.00027465,120]
[343990811,1733169951490,-3352.32,0.00027465,120]
[343990812,1733169951540,-768.34,0.00027465,120]
[343990813,1733169951587,-775.22,0.00027465,120]
[343990814,1733169951643,-500.0,0.00027465,120]
[343990815,1733169951688,-500.0,0.00027465,120]
[343990816,1733169951733,-944.8,0.00027465,120]
[343990817,1733169951780,-1636.96,0.00027465,120]
[343990818,1733169951826,-1458.9,0.00027465,120]
[343990819,1733169951873,-670.62,0.00027465,120]
[343990820,1733169951922,-923.85,0.00027465,120]
[343990821,1733169951971,-698.71,0.00027465,120]
[343990822,1733169952022,-3466.98,0.00027465,120]
[343990823,1733169952067,-453.65820665,0.00027465,120]
[343990824,1733169952111,-500.0,0.00027465,120]
[343990825,1733169952154,-1512.19,0.00027465,120]
[343990826,1733169952198,-592.57,0.00027465,120]
[343990827,1733169952243,-6797.27,0.00027465,120]
[343990828,1733169952293,-1560.09,0.00027465,120]
[343990829,1733169952340,-676.63,0.00027465,120]
[343990830,1733169952386,-4584.49,0.00027465,120]
[343990831,1733169952432,-500.0,0.00027465,120]
[343990832,1733169952477,-2820.52,0.00027465,120]
[343990833,1733169952524,-1361.04,0.00027465,120]
[343990834,1733169952574,-2781.44,0.00027465,120]
[343990835,1733169952628,-1258.23,0.00027465,120]
[343990836,1733169952679,-500.0,0.00027465,120]
[343990837,1733169952728,-500.0,0.00027465,120]
[343990838,1733169952778,-2650.17,0.00027465,120]
[343990839,1733169952828,-3300.64,0.00027465,120]
[343990840,1733169952878,-2017.79,0.00027465,120]
[343990841,1733169952924,-500.0,0.00027465,120]
[343990842,1733169952971,-1286.34,0.00027465,120]
[343990843,1733169953029,-1387.45,0.00027465,120]
[343990844,1733169953077,-3693.67,0.00027465,120]
[343990845,1733169953124,-500.0,0.00027465,120]
[343990846,1733169953174,-3023.16,0.00027465,120]
[343990847,1733169953229,-1193.08,0.00027465,120]
[343990848,1733169953283,-3240.77,0.00027465,120]
[343990849,1733169953333,-2236.02,0.00027465,120]
[343990850,1733169953380,-1679.56,0.00027465,120]
[343990851,1733169953429,-655.53,0.00027465,120]
[343990852,1733169953480,-500.0,0.00027465,120]
[343990853,1733169953532,-1505.75,0.00027465,120]
[343990854,1733169953581,-1614.33,0.00027465,120]
[343990855,1733169953631,-500.0,0.00027465,120]
[343990856,1733169953679,-500.0,0.00027465,120]
[343990857,1733169953933,-500.0,0.00027739,120]
[343990858,1733169953982,-500.0,0.00027739,120]
[343990859,1733169954033,-500.0,0.00027739,120]
[343990860,1733169954081,-500.0,0.00027739,120]
[343990861,1733169954127,-500.0,0.00027739,120]
[343990862,1733169954173,-500.0,0.00027739,120]
[343990863,1733169954218,-500.0,0.00027739,120]
[343990864,1733169954263,-285.93359733,0.00027739,120]
[343990865,1733169954309,-500.0,0.00027739,120]
[343990866,1733169954356,-500.0,0.00027739,120]
[343990867,1733169954400,-500.0,0.00027739,120]
[343990868,1733169954445,-500.0,0.00027739,120]
[343990869,1733169954492,-500.0,0.00027739,120]
[343990870,1733169954538,-500.0,0.00027739,120]
[343990871,1733169954585,-500.0,0.00027739,120]
[343990872,1733169954633,-500.0,0.00027739,120]
[343990873,1733169954680,-500.0,0.00027739,120]
[343990874,1733169954726,-500.0,0.00027739,120]
[343990875,1733169954772,-500.0,0.00027739,120]
[343990876,1733169954816,-500.0,0.00027739,120]
[343990877,1733169954861,-363.17025238,0.00027739,120]
[343990878,1733169954906,-500.0,0.00027739,120]
[343990879,1733169954953,-500.0,0.00027739,120]
[343990880,1733169955000,-500.0,0.00027739,120]
[343990881,1733169955054,-500.0,0.00027739,120]
[343990882,1733169955102,-608.17851255,0.00027739,120]
[343990883,1733169955149,-500.0,0.00027739,120]
[343990884,1733169955196,-972.55,0.00027739,120]
[343990885,1733169955242,-976.93,0.00027739,120]
[343990886,1733169955290,-500.0,0.00027739,120]